fUSD/lending_fUSD_20240322
["ID","MTS","AMOUNT","RATE_DAILY","PERIOD"]
[320076707,1711139441562,-1334.8792864,0.00021667,2]
[320076709,1711139441576,-152.01480556,0.00021672,2]
[320076711,1711139441586,-161.82564228,0.00021697,2]
[320076713,1711139441595,-1541.8594581,0.0002177,2]
[320076715,1711139441604,-500.0,0.0002178,2]
[320076717,1711139441614,-500.0,0.0002178,2]
[320076719,1711139441623,-1500.0,0.0002178,2]
[320076721,1711139441633,-4586.7146,0.00021817,2]
[320076723,1711139441644,-8232.71760995,0.00021827,2]
[320076725,1711139441653,-2011.01255066,0.00021897,5]
[320076727,1711139441663,-1240.14659889,0.00021916,5]
[320076729,1711139441673,-500.0,0.00021917,2]
[320076731,1711139441683,-500.0,0.00021917,2]
[320076733,1711139441693,-500.0,0.00021917,2]
[320076735,1711139441704,-500.0,0.00021917,2]
[320076737,1711139441714,-500.0,0.00021917,2]
[320076739,1711139441724,-501.48019802,0.00021917,2]
[320076741,1711139441734,-500.0,0.00021917,2]
[320076743,1711139441744,-500.0,0.00021917,2]
[320076745,1711139441754,-500.0,0.00021917,2]
[320076747,1711139441764,-500.0,0.00021917,2]
[320076749,1711139441774,-500.0,0.00021917,2]
[320076751,1711139441784,-362.39485502,0.00021917,2]
[320076753,1711139441794,-500.0,0.00021917,2]
[320076755,1711139441804,-500.0,0.00021917,2]
[320076757,1711139441814,-500.0,0.00021917,2]
[320076759,1711139441828,-500.0,0.00021917,2]
[320076761,1711139441838,-183.34459395,0.00021917,2]
[320076763,1711139441848,-500.0,0.00021917,2]
[320076765,1711139441858,-500.0,0.00021917,2]
[320076767,1711139441867,-226.74770893,0.00021917,2]
[320076769,1711139441878,-500.71172902,0.00021917,2]
[320076771,1711139441887,-500.0,0.00021917,2]
[320076773,1711139441897,-500.0,0.00021917,2]
[320076775,1711139441907,-500.0,0.00021917,2]
[320076777,1711139441918,-500.0,0.00021917,2]
[320076779,1711139441931,-500.0,0.00021917,2]
[320076781,1711139441942,-509.31736155,0.00021917,2]
[320076782,1711139441953,-500.0,0.00021917,2]
[320076784,1711139441963,-500.0,0.00021917,2]
[320076786,1711139441973,-509.94378723,0.00021917,2]
[320076788,1711139441983,-500.0,0.00021917,2]
[320076790,1711139441994,-500.0,0.00021917,2]
[320076792,1711139442006,-500.0,0.00021917,2]
[320076794,1711139442015,-500.0,0.00021917,2]
[320076796,1711139442026,-500.0,0.00021917,2]
[320076798,1711139442037,-500.0,0.00021917,2]
[320076800,1711139442047,-500.0,0.00021917,2]
[320076802,1711139442058,-500.0,0.00021917,2]
[320076804,1711139442068,-500.0,0.00021917,2]
[320076806,1711139442083,-500.0,0.00021917,2]
[320076808,1711139442093,-500.0,0.00021917,2]
[320076810,1711139442103,-500.0,0.00021917,2]
[320076812,1711139442113,-500.0,0.00021917,2]
[320076814,1711139442123,-500.0,0.00021917,2]
[320076816,1711139442133,-500.0,0.00021917,2]
[320076818,1711139442144,-500.0,0.00021917,2]
[320076820,1711139442153,-500.0,0.00021917,2]
[320076822,1711139442163,-500.0,0.00021917,2]
[320076824,1711139442173,-500.0,0.00021917,2]
[320076826,1711139442183,-500.0,0.00021917,2]
[320076828,1711139442192,-500.41891889,0.00021917,2]
[320076830,1711139442202,-500.0,0.00021917,2]
[320076832,1711139442211,-500.0,0.00021917,2]
[320076834,1711139442221,-500.0,0.00021917,2]
[320076836,1711139442230,-500.0,0.00021917,2]
[320076859,1711139442468,-500.0,0.00021917,2]
[320076861,1711139442478,-500.0,0.00021917,2]
[320076863,1711139442488,-500.0,0.00021917,2]
[320076865,1711139442497,-500.0,0.00021917,2]
[320076867,1711139442508,-400.0,0.00021917,21]
[320076869,1711139442518,-500.0,0.00021917,2]
[320076870,1711139442527,-500.0,0.00021917,2]
[320076872,1711139442537,-500.0,0.00021917,2]
[320076875,1711139442546,-500.0,0.00021917,2]
[320076877,1711139442556,-500.0,0.00021917,2]
[320076879,1711139442566,-500.0,0.00021917,2]
[320076881,1711139442582,-500.0,0.00021917,2]
[320076883,1711139442592,-502.70951978,0.00021917,2]
[320076885,1711139442602,-500.0,0.00021917,2]
[320076886,1711139442612,-898.44,0.00021917,2]
[320076888,1711139442623,-628.30331556,0.00021917,2]
[320076890,1711139442633,-500.7543804,0.00021917,2]
[320076892,1711139442644,-500.0,0.00021917,2]
[320076895,1711139442654,-500.0,0.00021917,2]
[320076897,1711139442664,-500.0,0.00021917,2]
[320076899,1711139442675,-500.0,0.00021917,2]
[320076900,1711139442685,-724.51,0.00021917,2]
[320076903,1711139442696,-505.00084508,0.00021917,2]
[320076904,1711139442706,-500.0,0.00021917,2]
[320076906,1711139442716,-500.0,0.00021917,2]
[320076908,1711139442726,-500.0,0.00021917,2]
[320076910,1711139442736,-501.38884216,0.00021917,2]
[320076912,1711139442745,-502.69447684,0.00021917,2]
[320076914,1711139442755,-1089.71,0.00021917,2]
[320076916,1711139442764,-500.0,0.00021917,2]
[320076918,1711139442773,-500.0,0.00021917,2]
[320076920,1711139442783,-500.0,0.00021917,2]
[320076923,1711139442794,-504.9519426,0.00021917,2]
[320076925,1711139442804,-584.1520477,0.00021917,2]
[320076926,1711139442814,-619.99,0.00021917,2]
[320076928,1711139442829,-500.0,0.00021917,2]
[320076931,1711139442839,-500.0,0.00021917,2]
[320076933,1711139442849,-500.0,0.00021917,2]
[320076935,1711139442859,-500.0,0.00021917,2]
[320076937,1711139442869,-500.0,0.00021917,2]
[320076938,1711139442879,-500.0,0.00021917,2]
[320076940,1711139442888,-500.0,0.00021917,2]
[320076943,1711139442898,-502.35767353,0.00021917,2]
[320076945,1711139442909,-500.0,0.00021917,2]
[320076946,1711139442918,-500.0,0.00021917,2]
[320076948,1711139442928,-500.0,0.00021917,2]
[320076950,1711139442937,-577.97,0.00021917,2]
[320076952,1711139442946,-500.0,0.00021917,2]
[320076954,1711139442956,-500.0,0.00021917,2]
[320076956,1711139442965,-500.0,0.00021917,2]
[320076958,1711139442975,-500.0,0.00021917,2]
[320076960,1711139442984,-500.0,0.00021917,2]
[320076961,1711139442994,-500.0,0.00021917,2]
[320076962,1711139443004,-500.0,0.00021917,2]
[320076964,1711139443014,-983.01,0.00021917,2]
[320076965,1711139443023,-500.0,0.00021917,2]
[320076966,1711139443033,-500.0,0.00021917,2]
[320076968,1711139443043,-500.0,0.00021917,2]
[320076970,1711139443053,-500.0,0.00021917,2]
[320076971,1711139443062,-500.0,0.00021917,2]
[320076972,1711139443075,-500.0,0.00021917,2]
[320076973,1711139443085,-500.0,0.00021917,2]
[320076974,1711139443095,-500.0,0.00021917,2]
[320076975,1711139443104,-500.0,0.00021917,2]
[320076976,1711139443112,-1046.61,0.00021917,2]
[320076977,1711139443121,-559.4,0.00021917,2]
[320076978,1711139443130,-500.0,0.00021917,2]
[320076979,1711139443139,-500.0,0.00021917,2]
[320076980,1711139443148,-500.0,0.00021917,2]
[320076981,1711139443157,-540.85,0.00021917,2]
[320076982,1711139443166,-500.0,0.00021917,2]
[320076983,1711139443175,-628.92517194,0.00021917,2]
[320076984,1711139443185,-500.0,0.00021917,2]
[320076985,1711139443194,-500.0,0.00021917,2]
[320076986,1711139443205,-500.0,0.00021917,2]
[320076987,1711139443216,-570.98,0.00021917,2]
[320076988,1711139443226,-500.0,0.00021917,2]
[320076989,1711139443236,-500.0,0.00021917,2]
[320076990,1711139443247,-500.0,0.00021917,2]
[320076991,1711139443257,-500.0,0.00021917,2]
[320076992,1711139443267,-500.0,0.00021917,2]
[320076993,1711139443276,-500.0,0.00021917,2]
[320076994,1711139443287,-500.0,0.00021917,2]
[320076995,1711139443298,-500.0,0.00021917,2]
[320076996,1711139443307,-500.0,0.00021917,2]
[320076997,1711139443317,-500.0,0.00021917,2]
[320076998,1711139443333,-500.0,0.00021917,2]
[320076999,1711139443343,-502.89877282,0.00021917,2]
[320077000,1711139443353,-500.0,0.00021917,2]
[320077001,1711139443366,-500.0,0.00021917,2]
[320077002,1711139443376,-500.0,0.00021917,2]
[320077003,1711139443386,-500.0,0.00021917,2]
[320077004,1711139443396,-500.0,0.00021917,2]
[320077005,1711139443407,-500.0,0.00021917,2]
[320077006,1711139443417,-500.0,0.00021917,2]
[320077007,1711139443427,-500.0,0.00021917,2]
[320077008,1711139443437,-500.0,0.00021917,2]
[320077009,1711139443447,-500.81937105,0.00021917,2]
[320077010,1711139443457,-500.0,0.00021917,2]
[320077011,1711139443467,-500.0,0.00021917,2]
[320077012,1711139443476,-500.0,0.00021917,2]
[320077013,1711139443485,-1413.63,0.00021917,2]
[320077014,1711139443495,-400.60713664,0.00021917,2]
[320077015,1711139443504,-500.0,0.00021917,2]
[320077016,1711139443513,-500.0,0.00021917,2]
[320077017,1711139443523,-500.0,0.00021917,2]
[320077018,1711139443532,-500.0,0.00021917,2]
[320077019,1711139443541,-500.0,0.00021917,2]
[320077020,1711139443551,-500.0,0.00021917,2]
[320077021,1711139443560,-500.0,0.00021917,2]
[320077022,1711139443569,-500.0,0.00021917,2]
[320077023,1711139443586,-809.35,0.00021917,2]
[320077024,1711139443594,-500.0,0.00021917,2]
[320077025,1711139443604,-500.0,0.00021917,2]
[320077026,1711139443614,-500.0,0.00021917,2]
[320077027,1711139443623,-500.0,0.00021917,2]
[320077028,1711139443633,-500.0,0.00021917,2]
[320077029,1711139443643,-500.0,0.00021917,2]
[320077030,1711139443653,-500.0,0.00021917,2]
[320077031,1711139443662,-815.96,0.00021917,2]
[320077032,1711139443672,-902.85,0.00021917,2]
[320077033,1711139443681,-500.0,0.00021917,2]
[320077034,1711139443690,-500.0,0.00021917,2]
[320077035,1711139443700,-500.0,0.00021917,2]
[320077036,1711139443710,-500.0,0.00021917,2]
[320077037,1711139443719,-500.0,0.00021917,2]
[320077038,1711139443729,-574.72,0.00021917,2]
[320077039,1711139443739,-500.0,0.00021917,2]
[320077040,1711139443748,-500.0,0.00021917,2]
[320077041,1711139443757,-507.0739625,0.00021917,2]
[320077042,1711139443766,-507.63451053,0.00021917,2]
[320077043,1711139443775,-1070.73,0.00021917,2]
[320077044,1711139443784,-500.0,0.00021917,2]
[320077045,1711139443793,-500.0,0.00021917,2]
[320077046,1711139443803,-500.0,0.00021917,2]
[320077047,1711139443811,-500.0,0.00021917,2]
[320077048,1711139443821,-501.47102689,0.00021917,2]
[320077049,1711139443836,-1351.72,0.00021917,2]
[320077050,1711139443845,-500.0,0.00021917,2]
[320077051,1711139443854,-500.0,0.00021917,2]
[320077052,1711139443863,-500.0,0.00021917,2]
[320077053,1711139443873,-500.0,0.00021917,2]
[320077054,1711139443882,-500.0,0.00021917,2]
[320077055,1711139443891,-500.0,0.00021917,2]
[320077056,1711139443900,-500.0,0.00021917,2]
[320077057,1711139443909,-500.0,0.00021917,2]
[320077058,1711139443918,-501.11392445,0.00021917,2]
[320077059,1711139443927,-649.60176902,0.00021917,2]
[320077060,1711139443935,-1281.59,0.00021917,2]
[320077061,1711139443944,-500.0,0.00021917,2]
[320077062,1711139443953,-500.35952047,0.00021917,2]
[320077063,1711139443962,-300.0,0.00021917,2]
[320077064,1711139443971,-813.3,0.00021917,2]
[320077065,1711139443980,-500.0,0.00021917,2]
[320077066,1711139443990,-500.0,0.00021917,2]
[320077067,1711139444000,-580.61,0.00021917,2]
[320077068,1711139444010,-500.0,0.00021917,2]
[320077069,1711139444020,-500.0,0.00021917,2]
[320077070,1711139444029,-500.0,0.00021917,2]
[320077071,1711139444038,-500.0,0.00021917,2]
[320077072,1711139444047,-500.0,0.00021917,2]
[320077073,1711139444057,-505.35068845,0.00021917,2]
[320077074,1711139444066,-500.0,0.00021917,2]
[320077075,1711139444079,-614.57,0.00021917,2]
[320077076,1711139444090,-500.0,0.00021917,2]
[320077077,1711139444100,-500.0,0.00021917,2]
[320077078,1711139444109,-500.0,0.00021917,2]
[320077079,1711139444118,-500.0,0.00021917,2]
[320077080,1711139444127,-500.0,0.00021917,2]
[320077081,1711139444136,-500.0,0.00021917,2]
[320077082,1711139444145,-500.0,0.00021917,2]
[320077083,1711139444154,-500.0,0.00021917,2]
[320077084,1711139444163,-500.0,0.00021917,2]
[320077085,1711139444172,-500.0,0.00021917,2]
[320077086,1711139444182,-500.0,0.00021917,2]
[320077087,1711139444190,-500.0,0.00021917,2]
[320077088,1711139444199,-500.0,0.00021917,2]
[320077089,1711139444209,-500.0,0.00021917,2]
[320077090,1711139444218,-500.0,0.00021917,2]
[320077091,1711139444228,-500.0,0.00021917,2]
[320077092,1711139444237,-949.23,0.00021917,2]
[320077093,1711139444246,-500.0,0.00021917,2]
[320077094,1711139444255,-500.0,0.00021917,2]
[320077095,1711139444264,-500.0,0.00021917,2]
[320077096,1711139444274,-506.00727885,0.00021917,2]
[320077097,1711139444283,-500.0,0.00021917,2]
[320077098,1711139444291,-627.84,0.00021917,2]
[320077099,1711139444301,-500.0,0.00021917,2]
[320077100,1711139444310,-506.17233395,0.00021917,2]
[320077101,1711139444319,-500.0,0.00021917,2]
[320077102,1711139444333,-491.5081997,0.00021917,2]
[320077103,1711139444342,-497.83918763,0.00021917,2]
[320077104,1711139444351,-1493.41,0.00021917,2]
[320077105,1711139444360,-200.0,0.00021917,10]
[320077106,1711139444369,-500.0,0.00021917,2]
[320077107,1711139444378,-615.59,0.00021917,2]
[320077108,1711139444387,-503.44692428,0.00021917,2]
[320077109,1711139444396,-801.32,0.00021917,2]
[320077110,1711139444405,-500.0,0.00021917,2]
[320077111,1711139444414,-500.0,0.00021917,2]
[320077112,1711139444424,-500.0,0.00021917,2]
[320077113,1711139444433,-500.0,0.00021917,2]
[320077114,1711139444442,-500.0,0.00021917,2]
[320077115,1711139444451,-500.0,0.00021917,2]
[320077116,1711139444460,-500.0,0.00021917,2]
[320077117,1711139444470,-500.0,0.00021917,2]
[320077118,1711139444479,-567.86,0.00021917,2]
[320077119,1711139444488,-500.0,0.00021917,2]
[320077120,1711139444497,-500.0,0.00021917,2]
[320077121,1711139444507,-3733.65,0.00021917,2]
[320077122,1711139444516,-503.80782758,0.00021917,2]
[320077123,1711139444526,-588.33298373,0.00021917,2]
[320077124,1711139444535,-500.0,0.00021917,2]
[320077125,1711139444544,-557.81,0.00021917,2]
[320077126,1711139444553,-500.0,0.00021917,2]
[320077127,1711139444562,-500.0,0.00021917,2]
[320077128,1711139444575,-500.0,0.00021917,2]
[320077129,1711139444585,-529.46,0.00021917,2]
[320077130,1711139444594,-500.0,0.00021917,2]
[320077131,1711139444603,-894.73,0.00021917,2]
[320077132,1711139444613,-500.0,0.00021917,2]
[320077133,1711139444622,-500.0,0.00021917,2]
[320077134,1711139444631,-504.1768002,0.00021917,2]
[320077135,1711139444641,-501.81439818,0.00021917,2]
[320077136,1711139444650,-500.0,0.00021917,2]
[320077137,1711139444662,-500.0,0.00021917,2]
[320077138,1711139444671,-500.0,0.00021917,2]
[320077139,1711139444680,-500.0,0.00021917,2]
[320077140,1711139444690,-543.84,0.00021917,2]
[320077141,1711139444699,-503.10113327,0.00021917,2]
[320077142,1711139444708,-503.65298983,0.00021917,2]
[320077143,1711139444718,-500.0,0.00021917,2]
[320077144,1711139444727,-500.0,0.00021917,2]
[320077145,1711139444737,-500.0,0.00021917,2]
[320077146,1711139444746,-2005.15407919,0.00021917,2]
[320077147,1711139444755,-500.0,0.00021917,2]
[320077148,1711139444765,-1201.49,0.00021917,2]
[320077149,1711139444775,-1170.53,0.00021917,2]
[320077150,1711139444784,-500.0,0.00021917,2]
[320077151,1711139444793,-501.14936497,0.00021917,2]
[320077152,1711139444802,-500.0,0.00021917,2]
[320077153,1711139444811,-1341.91,0.00021917,2]
[320077154,1711139444821,-572.97,0.00021917,2]
[320077155,1711139444832,-502.89964514,0.00021917,2]
[320077156,1711139444842,-572.1228641,0.00021917,2]
[320077157,1711139444851,-500.0,0.00021917,2]
[320077158,1711139444861,-500.0,0.00021917,2]
[320077159,1711139444870,-500.0,0.00021917,2]
[320077160,1711139444880,-505.8461142,0.00021917,2]
[320077161,1711139444889,-500.0,0.00021917,2]
[320077162,1711139444898,-500.0,0.00021917,2]
[320077163,1711139444907,-500.0,0.00021917,2]
[320077164,1711139444918,-500.0,0.00021917,2]
[320077165,1711139444928,-500.0,0.00021917,2]
[320077166,1711139444939,-500.0,0.00021917,2]
[320077167,1711139444948,-500.0,0.00021917,2]
[320077168,1711139444959,-500.0,0.00021917,2]
[320077169,1711139444968,-942.48,0.00021917,2]
[320077170,1711139444978,-500.0,0.00021917,2]
[320077171,1711139444991,-501.385992,0.00021917,2]
[320077172,1711139445001,-500.0,0.00021917,2]
[320077173,1711139445014,-500.0,0.00021917,2]
[320077174,1711139445025,-500.0,0.00021917,2]
[320077175,1711139445036,-642.43,0.00021917,2]
[320077176,1711139445046,-503.64043361,0.00021917,2]
[320077177,1711139445056,-176.32216028,0.00021917,2]
[320077178,1711139445065,-500.0,0.00021917,2]
[320077179,1711139445081,-500.0,0.00021917,2]
[320077180,1711139445091,-503.14366042,0.00021917,2]
[320077181,1711139445100,-500.0,0.00021917,2]
[320077182,1711139445111,-505.8,0.00021917,2]
[320077183,1711139445120,-500.0,0.00021917,2]
[320077184,1711139445131,-670.45,0.00021917,2]
[320077185,1711139445141,-500.0,0.00021917,2]
[320077186,1711139445151,-500.0,0.00021917,2]
[320077187,1711139445160,-502.24195321,0.00021917,2]
[320077188,1711139445170,-500.0,0.00021917,2]
[320077189,1711139445180,-500.0,0.00021917,2]
[320077190,1711139445189,-503.07733682,0.00021917,2]
[320077191,1711139445199,-937.62,0.00021917,2]
[320077192,1711139445208,-500.0,0.00021917,2]
[320077193,1711139445217,-503.27927921,0.00021917,2]
[320077194,1711139445228,-500.0,0.00021917,2]
[320077195,1711139445237,-507.28329943,0.00021917,2]
[320077196,1711139445246,-293.31255166,0.00021917,2]
[320077197,1711139445255,-500.0,0.00021917,2]
[320077198,1711139445264,-500.0,0.00021917,2]
[320077199,1711139445273,-500.0,0.00021917,2]
[320077200,1711139445283,-500.0,0.00021917,2]
[320077201,1711139445292,-1105.88,0.00021917,2]
[320077202,1711139445301,-500.0,0.00021917,2]
[320077203,1711139445310,-502.98528423,0.00021917,2]
[320077204,1711139445320,-500.0,0.00021917,2]
[320077205,1711139445334,-500.0,0.00021917,2]
[320077206,1711139445343,-1032.11,0.00021917,2]
[320077207,1711139445353,-499.80885543,0.00021917,2]
[320077208,1711139445363,-500.0,0.00021917,2]
[320077209,1711139445372,-561.12,0.00021917,2]
[320077210,1711139445382,-505.11527208,0.00021917,2]
[320077211,1711139445391,-504.68104833,0.00021917,2]
[320077212,1711139445401,-500.0,0.00021917,2]
[320077213,1711139445410,-500.56088805,0.00021917,2]
[320077214,1711139445419,-500.0,0.00021917,2]
[320077215,1711139445429,-150.0,0.00021917,2]
[320077216,1711139445439,-500.0,0.00021917,2]
[320077217,1711139445448,-500.0,0.00021917,2]
[320077218,1711139445457,-500.0,0.00021917,2]
[320077219,1711139445467,-503.95500664,0.00021917,2]
[320077220,1711139445476,-500.0,0.00021917,2]
[320077221,1711139445485,-500.0,0.00021917,2]
[320077222,1711139445495,-500.0,0.00021917,2]
[320077223,1711139445505,-500.0,0.00021917,2]
[320077224,1711139445514,-1201.63,0.00021917,2]
[320077225,1711139445523,-503.99367318,0.00021917,2]
[320077226,1711139445532,-500.0,0.00021917,2]
[320077227,1711139445541,-503.44825145,0.00021917,2]
[320077228,1711139445551,-510.48653619,0.00021917,2]
[320077229,1711139445560,-573.69,0.00021917,2]
[320077230,1711139445569,-500.0,0.00021917,2]
[320077231,1711139445582,-413.69097541,0.00021917,2]
[320077232,1711139445591,-503.19150413,0.00021917,2]
[320077233,1711139445601,-770.75,0.00021917,2]
[320077234,1711139445610,-500.0,0.00021917,2]
[320077235,1711139445619,-500.0,0.00021917,2]
[320077236,1711139445630,-500.0,0.00021917,2]
[320077237,1711139445639,-500.0,0.00021917,2]
[320077238,1711139445649,-500.0,0.00021917,2]
[320077239,1711139445660,-501.60689868,0.00021917,2]
[320077240,1711139445669,-500.0,0.00021917,2]
[320077241,1711139445680,-774.72,0.00021917,2]
[320077242,1711139445690,-500.0,0.00021917,2]
[320077243,1711139445700,-992.52,0.00021917,2]
[320077244,1711139445710,-503.13182505,0.00021917,2]
[320077245,1711139445719,-500.0,0.00021917,2]
[320077246,1711139445729,-500.0,0.00021917,2]
[320077247,1711139445739,-500.0,0.00021917,2]
[320077248,1711139445748,-500.0,0.00021917,2]
[320077249,1711139445757,-500.0,0.00021917,2]
[320077250,1711139445766,-500.0,0.00021917,2]
[320077251,1711139445775,-500.0,0.00021917,2]
[320077252,1711139445785,-500.0,0.00021917,2]
[320077253,1711139445794,-500.0,0.00021917,2]
[320077254,1711139445803,-500.0,0.00021917,2]
[320077255,1711139445813,-500.0,0.00021917,2]
[320077256,1711139445823,-500.0,0.00021917,2]
[320077257,1711139446031,-500.0,0.00021917,2]
[320077258,1711139446041,-1230.1,0.00021917,2]
[320077259,1711139446050,-500.0,0.00021917,2]
[320077260,1711139446059,-500.0,0.00021917,2]
[320077261,1711139446068,-500.0,0.00021917,2]
[320077262,1711139446080,-496.69956913,0.00021917,2]
[320077263,1711139446089,-500.0,0.00021917,2]
[320077264,1711139446100,-500.0,0.00021917,2]
[320077265,1711139446109,-500.0,0.00021917,2]
[320077266,1711139446118,-500.0,0.00021917,2]
[320077267,1711139446128,-500.0,0.00021917,2]
[320077268,1711139446137,-504.4825887,0.00021917,2]
[320077269,1711139446147,-500.0,0.00021917,2]
[320077270,1711139446156,-500.0,0.00021917,2]
[320077271,1711139446166,-1102.7,0.00021917,2]
[320077272,1711139446175,-500.0,0.00021917,2]
[320077273,1711139446185,-500.0,0.00021917,2]
[320077274,1711139446195,-500.0,0.00021917,2]
[320077275,1711139446204,-500.0,0.00021917,2]
[320077276,1711139446213,-200.37847436,0.00021917,2]
[320077277,1711139446222,-500.0,0.00021917,2]
[320077278,1711139446232,-500.0,0.00021917,2]
[320077279,1711139446241,-1891.14,0.00021917,2]
[320077280,1711139446251,-500.0,0.00021917,2]
[320077281,1711139446259,-500.0,0.00021917,2]
[320077282,1711139446269,-500.0,0.00021917,2]
[320077283,1711139446278,-696.85,0.00021917,2]
[320077284,1711139446287,-502.56537871,0.00021917,2]
[320077285,1711139446296,-500.0,0.00021917,2]
[320077286,1711139446305,-500.0,0.00021917,2]
[320077287,1711139446314,-500.0,0.00021917,2]
[320077288,1711139446327,-652.07,0.00021917,2]
[320077289,1711139446336,-500.0,0.00021917,2]
[320077290,1711139446345,-1773.86,0.00021917,2]
[320077291,1711139446354,-1527.53,0.00021917,2]
[320077292,1711139446363,-506.11835801,0.00021917,2]
[320077293,1711139446373,-504.91521751,0.00021917,2]
[320077294,1711139446381,-711.46,0.00021917,2]
[320077295,1711139446391,-500.0,0.00021917,2]
[320077296,1711139446400,-502.99458474,0.00021917,2]
[320077297,1711139446409,-500.0,0.00021917,2]
[320077298,1711139446418,-240.04460575,0.00021917,2]
[320077299,1711139446427,-500.0,0.00021917,2]
[320077300,1711139446436,-502.62294767,0.00021917,2]
[320077301,1711139446445,-500.0,0.00021917,2]
[320077302,1711139446454,-500.0,0.00021917,2]
[320077303,1711139446463,-500.0,0.00021917,2]
[320077304,1711139446472,-1111.84,0.00021917,2]
[320077305,1711139446481,-500.0,0.00021917,2]
[320077306,1711139446490,-507.49882514,0.00021917,2]
[320077307,1711139446499,-2794.22,0.00021917,2]
[320077308,1711139446508,-501.41581032,0.00021917,2]
[320077309,1711139446517,-500.0,0.00021917,2]
[320077310,1711139446527,-501.33350521,0.00021917,2]
[320077311,1711139446536,-500.0,0.00021917,2]
[320077312,1711139446545,-500.0,0.00021917,2]
[320077313,1711139446554,-500.0,0.00021917,2]
[320077314,1711139446563,-552.94,0.00021917,2]
[320077315,1711139446574,-500.0,0.00021917,2]
[320077316,1711139446583,-508.11652695,0.00021917,2]
[320077317,1711139446592,-1929.58,0.00021917,2]
[320077318,1711139446601,-500.0,0.00021917,2]
[320077319,1711139446610,-527.62,0.00021917,2]
[320077320,1711139446619,-500.0,0.00021917,2]
[320077321,1711139446629,-500.0,0.00021917,2]
[320077322,1711139446638,-2166.9,0.00021917,2]
[320077323,1711139446647,-500.0,0.00021917,2]
[320077324,1711139446656,-500.0,0.00021917,2]
[320077325,1711139446665,-469.5,0.00021917,2]
[320077326,1711139446674,-500.0,0.00021917,2]
[320077327,1711139446683,-500.0,0.00021917,2]
[320077328,1711139446692,-501.28668557,0.00021917,2]
[320077329,1711139446701,-500.0,0.00021917,2]
[320077330,1711139446710,-500.0,0.00021917,2]
[320077331,1711139446719,-500.0,0.00021917,2]
[320077332,1711139446729,-500.0,0.00021917,2]
[320077333,1711139446737,-500.0,0.00021917,2]
[320077334,1711139446746,-1026.31,0.00021917,2]
[320077335,1711139446755,-500.0,0.00021917,2]
[320077336,1711139446764,-500.40107673,0.00021917,2]
[320077337,1711139446773,-500.0,0.00021917,2]
[320077338,1711139446782,-501.05906475,0.00021917,2]
[320077339,1711139446792,-500.0,0.00021917,2]
[320077340,1711139446801,-500.0,0.00021917,2]
[320077341,1711139446810,-500.0,0.00021917,2]
[320077342,1711139446819,-155.40059182,0.00021917,2]
[320077343,1711139446831,-500.0,0.00021917,2]
[320077344,1711139446840,-1739.72,0.00021917,2]
[320077345,1711139446849,-2313.18,0.00021917,2]